bitfinex/quotes_SOLUSD_20240814
["timestamp","ask_amount","ask_price","bid_price","bid_amount"]
[1723641256501,45.26,149.45,149.2,6.224]
[1723641256502,45.26,149.35,149.2,6.224]
[1723641256798,45.26,149.34,149.2,6.224]
[1723641257001,45.26,149.38,149.21,45.26]
[1723641257297,36.7319,149.42,149.24,45.26]
[1723641257298,45.26,149.41,149.24,45.26]
[1723641257470,0.12549,149.37,149.21,45.26]
[1723641257676,45.50196,149.37,149.21,45.26]
[1723641258000,0.50196,149.37,149.21,45.26]
[1723641258182,45.50196,149.37,149.22,0.25098]
[1723641258382,15.8764,149.44,149.22,0.25098]
[1723641258383,45.26,149.41,149.24,45.26]
[1723641258585,45.12549,149.4,149.25,0.25098]
[1723641258906,45.12549,149.4,149.25,20.25098]
[1723641259277,45.12549,149.4,149.26,45.12549]
[1723641259476,51.81929,149.4,149.26,45.12549]
[1723641259678,0.12549,149.39,149.27,65.38549]
[1723641259875,16.7262,149.47,149.3,45.26]
[1723641259876,6.691,149.46,149.3,45.26]
[1723641260094,6.6894,149.49,149.36,45.26]
[1723641260290,6.4471,149.51,149.36,45.26]
[1723641260291,6.6889,149.51,149.37,51.53689]
[1723641260490,0.1230656,149.52,149.39,45.26]
[1723641260699,0.1230656,149.52,149.4,20.25098]
[1723641260921,0.1230656,149.52,149.42,45.26]
[1723641261094,26.823727,149.48,149.42,45.26]
[1723641261400,0.1230656,149.52,149.42,45.26]
[1723641261607,0.1230656,149.52,149.43,20.0]
[1723641263204,0.1230656,149.52,149.42,0.12549]
[1723641264116,0.1230656,149.52,149.44,45.26]
[1723641264282,0.1230656,149.52,149.45,20.12549]
[1723641264489,0.1230656,149.52,149.46,6.0843]
[1723641268013,0.1230656,149.52,149.47,45.0]
[1723641268215,0.1230656,149.52,149.46,6.0843]
[1723641269021,0.1230656,149.52,149.47,45.12549]
[1723641269215,0.1230656,149.52,149.48,66.59772987]
[1723641269536,0.1230656,149.52,149.48,65.26]
[1723641270391,0.1230656,149.52,149.49,45.12549]
[1723641271095,0.1230656,149.52,149.48,20.0]
[1723641271294,0.1230656,149.52,149.46,6.0843]
[1723641272798,0.1230656,149.52,149.41,6.5374]
[1723641273210,6.689,149.5,149.41,6.5374]
[1723641273517,6.689,149.5,149.38,45.26]
[1723641273518,6.6907,149.46,149.36,6.4469]
[1723641273723,0.25098,149.47,149.36,6.4469]
[1723641273893,6.6922,149.43,149.36,6.4469]
[1723641274219,0.25098,149.47,149.36,6.4469]
[1723641274392,0.12549,149.45,149.36,6.36639751]
[1723641274788,0.12549,149.51,149.36,6.36639751]
[1723641275012,0.37647,149.51,149.37,45.26]
[1723641275223,0.12549,149.51,149.37,45.26]
[1723641275420,6.6885,149.51,149.37,45.26]
[1723641275732,52.0710656,149.52,149.38,0.25098]
[1723641275911,52.0710656,149.52,149.38,0.37647]
[1723641275912,45.3830656,149.52,149.38,0.37647]
[1723641276107,0.1230656,149.52,149.39,0.25098]
[1723641276319,6.8110656,149.52,149.4,45.51098]
[1723641276641,45.3830656,149.52,149.38,45.0]
[1723641276802,45.12549,149.51,149.36,6.36639751]
[1723641277122,16.7292,149.44,149.31,6.9204726]
[1723641277311,45.26,149.43,149.29,6.1637]
[1723641277713,0.12549,149.42,149.29,6.1637]
[1723641277919,6.81819,149.42,149.29,6.1637]
[1723641278119,6.6931,149.41,149.29,6.1637]
[1723641278440,0.12549,149.42,149.29,6.1637]
[1723641278631,45.50196,149.42,149.29,6.1637]
[1723641278849,6.693,149.41,149.29,6.1637]
[1723641279019,6.6926,149.42,149.29,6.1637]
[1723641279508,15.2801,149.45,149.31,45.26]
[1723641279708,45.26,149.46,149.31,45.26]
[1723641279709,6.6907,149.46,149.32,20.12549]
[1723641279909,6.0048,149.48,149.33,45.25098]
[1723641280226,6.6926,149.42,149.33,45.0]
[1723641280434,45.26,149.46,149.32,45.12549]
[1723641280617,6.6908,149.46,149.33,0.37647]
[1723641280926,6.6927,149.42,149.31,45.26]
[1723641281137,6.6935,149.4,149.31,45.26]
[1723641281308,6.6929,149.42,149.31,45.26]
[1723641281507,6.692,149.44,149.31,45.26]
[1723641281805,6.6927,149.42,149.31,45.26]
[1723641282339,6.693,149.41,149.32,45.0]
[1723641282627,6.6925,149.42,149.32,45.0]
[1723641282926,6.6916,149.44,149.33,0.12549]
[1723641283132,6.6943,149.38,149.23,6.3689]
[1723641283334,45.26,149.4,149.23,6.3689]
[1723641283335,0.12549,149.35,149.24,45.26]
[1723641283807,0.12549,149.37,149.24,45.26]
[1723641284013,6.6953,149.36,149.24,45.26]
[1723641284210,6.6951,149.37,149.24,45.26]
[1723641284413,6.6951,149.37,149.23,6.3689]
[1723641284414,6.6951,149.37,149.27,45.26]
[1723641284637,0.12549,149.4,149.27,45.26]
[1723641284934,90.63647,149.4,149.24,45.26]
[1723641285141,6.6953,149.36,149.24,45.26]
[1723641285617,6.6948,149.37,149.24,45.26]
[1723641285819,0.25098,149.39,149.25,20.0]
[1723641286016,6.6957,149.35,149.25,20.0]
[1723641286213,6.6961,149.34,149.25,20.0]
[1723641286431,0.12549,149.36,149.23,6.3689]
[1723641286634,6.6965,149.33,149.23,6.3689]
[1723641286814,0.37647,149.36,149.23,6.3689]
[1723641287017,45.37647,149.36,149.23,6.3689]
[1723641287316,6.6961,149.34,149.23,6.3689]
[1723641287526,0.37647,149.36,149.23,6.3689]
[1723641287717,90.26,149.4,149.24,45.26]
[1723641287919,6.6953,149.36,149.24,45.26]
[1723641288119,90.26,149.4,149.24,45.26]
[1723641288120,6.6947,149.38,149.24,45.26]
[1723641288320,6.693,149.41,149.27,45.26]
[1723641288503,81.71,149.43,149.27,45.26]
[1723641288707,81.71,149.43,149.28,20.0]
[1723641289128,6.693,149.41,149.28,20.0]
[1723641289340,16.45,149.43,149.3,45.26]
[1723641289511,258.9,149.44,149.33,45.26]
[1723641289709,381.7,149.46,149.33,45.26]
[1723641290133,388.3907,149.46,149.34,65.25098]
[1723641290322,388.3907,149.46,149.34,65.0]
[1723641290323,381.7,149.46,149.34,65.0]
[1723641290632,6.6938,149.4,149.31,6.0986]
[1723641290850,6.693,149.41,149.31,6.0986]
[1723641291024,6.6924,149.43,149.31,51.3586]
[1723641291225,45.26,149.43,149.31,6.0986]
[1723641291534,6.6934,149.4,149.31,6.0986]
[1723641291732,6.694,149.39,149.31,6.0986]
[1723641292153,6.693,149.41,149.31,6.0986]
[1723641292362,45.26,149.43,149.31,6.0986]
[1723641292363,0.12549,149.42,149.31,6.0986]
[1723641292658,6.6921,149.43,149.31,51.3586]
[1723641292831,6.6921,149.43,149.32,0.25098]
[1723641293030,426.96,149.46,149.31,51.3586]
[1723641293252,6.6926,149.42,149.32,45.0]
[1723641293457,426.96,149.46,149.32,45.0]
[1723641293649,15.5408,149.48,149.34,45.26]
[1723641293970,6.6903,149.47,149.35,45.25098]
[1723641294142,15.5408,149.48,149.35,45.25098]
[1723641294333,6.6903,149.47,149.36,0.12549]
[1723641294531,6.6903,149.47,149.36,20.12549]
[1723641294757,22.2307,149.48,149.37,45.12549]
[1723641294932,6.6898,149.49,149.37,45.12549]
[1723641295134,6.6898,149.48,149.37,45.12549]
[1723641295545,265.5889,149.51,149.37,90.38549]
[1723641295740,6.6889,149.51,149.38,26.34188]
[1723641295937,6.689,149.5,149.39,0.12549]
[1723641296135,0.1230656,149.52,149.39,45.12549]
[1723641296366,6.6898,149.48,149.39,45.0]
[1723641296554,6.6898,149.48,149.38,6.0909]
[1723641296953,6.6894,149.5,149.38,6.0909]
[1723641297259,6.6894,149.5,149.39,45.12549]
[1723641297853,6.6885,149.51,149.39,45.12549]
[1723641298058,6.6885,149.51,149.39,61.46589]
[1723641298259,6.6885,149.51,149.4,0.12549]
[1723641298435,0.1230656,149.52,149.4,45.38549]
[1723641298635,0.1230656,149.52,149.41,65.25098]
[1723641298636,6.8111656,149.52,149.41,65.25098]
[1723641299053,6.8111656,149.52,149.42,0.12549]
[1723641299054,0.1230656,149.52,149.42,0.12549]
[1723641299253,0.1230656,149.52,149.42,0.25098]
[1723641299554,0.1230656,149.52,149.43,0.25098]
[1723641301041,0.1230656,149.52,149.41,20.0]
[1723641301245,0.1230656,149.52,149.39,15.8404]
[1723641301246,6.6898,149.48,149.39,15.8404]
[1723641301549,6.6911,149.46,149.38,6.0909]
[1723641301745,45.26,149.5,149.38,6.0909]
[1723641301746,6.6904,149.47,149.38,6.0909]
[1723641301942,0.12549,149.49,149.38,6.0909]
[1723641301943,6.6899,149.48,149.38,6.0909]
[1723641302273,0.12549,149.46,149.38,6.0909]
[1723641302940,0.12549,149.43,149.32,6.079]
[1723641303146,45.26,149.41,149.32,6.079]
[1723641303342,6.6938,149.4,149.32,6.079]
[1723641303765,52.07849,149.41,149.32,6.079]
[1723641303942,0.12549,149.41,149.32,6.079]
[1723641304142,0.12549,149.4,149.32,6.079]
[1723641304564,6.6948,149.37,149.32,6.079]
[1723641304766,45.26,149.39,149.27,6.5328]
[1723641304939,0.37647,149.38,149.27,6.5328]
[1723641305151,0.12549,149.37,149.27,6.5328]
[1723641305342,6.6949,149.37,149.27,6.5328]
[1723641305751,6.6944,149.38,149.27,6.5328]
[1723641306060,6.81939,149.39,149.27,6.5328]
[1723641306250,0.12549,149.42,149.27,51.7928]
[1723641306445,60.60280623,149.48,149.27,51.7928]
[1723641306446,6.692,149.44,149.3,45.26]
[1723641306668,45.26,149.48,149.33,45.26]
[1723641306868,6.6911,149.46,149.34,45.12549]
[1723641307073,258.9,149.5,149.36,51.6787]
[1723641307277,381.7,149.51,149.38,0.12549]
[1723641307575,381.7,149.51,149.39,45.26]
[1723641307879,6.6893,149.5,149.4,45.0]
[1723641308080,6.6869,149.55,149.42,45.26]
[1723641308376,16.0161,149.58,149.43,65.37647]
[1723641308552,16.0161,149.58,149.43,65.12549]
[1723641309170,45.26,149.52,149.38,45.26]
[1723641309405,45.26,149.52,149.37,15.3669]
[1723641309561,45.26,149.49,149.37,15.3669]
[1723641309751,6.6898,149.48,149.36,6.4187]
[1723641310152,0.12549,149.5,149.36,6.4187]
[1723641310352,6.6899,149.48,149.36,6.4187]
[1723641310565,0.12549,149.5,149.36,6.4187]
[1723641310885,6.6919,149.44,149.36,6.4187]
[1723641311086,0.12549,149.43,149.36,6.4187]
[1723641311300,45.37647,149.43,149.28,6.354]
[1723641311575,6.6943,149.38,149.28,6.354]
[1723641311783,45.26,149.41,149.28,6.354]
[1723641312082,16.85759,149.42,149.28,6.354]
[1723641312246,0.12549,149.42,149.28,6.354]
[1723641312446,0.12549,149.43,149.3,45.26]
[1723641312688,6.6925,149.42,149.3,45.26]
[1723641312898,6.6921,149.43,149.3,45.26]
[1723641313089,6.6924,149.43,149.3,45.26]
[1723641313484,6.6924,149.43,149.31,0.12549]
[1723641313682,6.693,149.41,149.31,45.12549]
[1723641313890,0.12549,149.44,149.31,45.12549]
[1723641314187,0.12549,149.44,149.32,20.25098]
[1723641314383,16.7226,149.5,149.36,45.26]
[1723641314582,304.16,149.51,149.36,45.26]
[1723641314792,304.16,149.51,149.37,45.12549]
[1723641314983,304.16,149.51,149.37,45.0]
[1723641315192,45.26,149.48,149.35,0.12549]
[1723641315388,61.9854,149.48,149.32,0.25098]
[1723641315574,6.6922,149.43,149.33,0.25098]
[1723641315770,61.9854,149.48,149.33,20.25098]
[1723641315995,61.9854,149.48,149.34,45.0]
[1723641316190,0.37647,149.47,149.34,45.0]
[1723641316483,0.37647,149.47,149.3,45.26]
[1723641316484,0.12549,149.46,149.3,45.26]
[1723641316670,45.26,149.44,149.3,45.26]
[1723641316876,0.25098,149.46,149.3,45.26]
[1723641317174,0.12549,149.44,149.3,45.26]
[1723641317774,6.6926,149.42,149.3,45.26]
[1723641317972,45.38549,149.44,149.28,6.354]
[1723641318195,6.6938,149.4,149.28,6.354]
[1723641318379,0.12549,149.42,149.28,6.354]
[1723641318579,6.81839,149.42,149.28,6.354]
[1723641318921,61.9849,149.48,149.3,45.26]
[1723641319093,45.26,149.48,149.33,45.26]
[1723641319297,6.6907,149.46,149.33,45.26]
[1723641319487,45.26,149.49,149.33,45.26]
[1723641319683,6.6889,149.5,149.36,45.38549]
[1723641319977,6.6889,149.5,149.37,65.37647]
[1723641320187,6.6894,149.49,149.38,15.3118]
[1723641320383,275.6216,149.51,149.38,15.3118]
[1723641320813,16.7248,149.48,149.35,6.0952]
[1723641320984,6.6926,149.42,149.35,6.0952]
[1723641321316,45.26,149.43,149.35,6.0952]
[1723641321481,45.26,149.4,149.31,6.4523]
[1723641321818,6.6939,149.39,149.31,6.4523]
[1723641322105,0.12549,149.39,149.31,6.4523]
[1723641322305,0.12549,149.39,149.26,15.9818]
[1723641322306,6.6961,149.34,149.27,6.0747]
[1723641322518,45.26,149.37,149.27,6.0747]
[1723641322519,6.6975,149.31,149.27,6.0747]
[1723641322699,6.697,149.32,149.27,6.0747]
[1723641323215,0.37647,149.36,149.27,6.0747]
[1723641323216,6.6974,149.31,149.27,6.0747]
[1723641323515,0.12549,149.33,149.27,6.0747]
[1723641324517,6.6979,149.3,149.21,6.6244]
[1723641324891,0.12549,149.33,149.21,6.6244]
[1723641325088,0.12549,149.31,149.21,6.6244]
[1723641325603,6.697,149.32,149.21,6.6244]
[1723641326214,6.6966,149.33,149.21,6.6244]
[1723641326426,6.6961,149.34,149.21,51.8844]
[1723641326586,45.26,149.38,149.24,45.26]
[1723641326911,45.26,149.38,149.25,0.12549]
[1723641327112,6.6952,149.36,149.24,45.26]
[1723641327316,51.9547,149.38,149.25,20.12549]
[1723641327488,45.26,149.41,149.26,0.25098]
[1723641327702,640.6,149.43,149.26,0.25098]
[1723641327703,640.6,149.43,149.27,45.38549]
[1723641327903,640.6,149.43,149.28,20.25098]
[1723641328108,16.732,149.42,149.27,45.38549]
[1723641328318,6.6948,149.37,149.27,0.12549]
[1723641328627,45.26,149.39,149.25,20.0]
[1723641328826,45.26,149.39,149.26,0.37647]
[1723641329033,6.6947,149.38,149.26,0.37647]
[1723641329209,45.26,149.39,149.26,0.37647]
[1723641329408,6.6944,149.38,149.26,0.37647]
[1723641329719,51.9539,149.39,149.26,0.37647]
[1723641330120,45.26,149.42,149.27,0.12549]
[1723641330332,640.6,149.43,149.27,0.12549]
[1723641330333,6.6931,149.41,149.27,0.12549]
[1723641330633,640.6,149.43,149.27,0.12549]
[1723641331205,45.26,149.4,149.26,0.12549]
[1723641331411,6.6952,149.36,149.25,20.0]
[1723641331627,6.6952,149.36,149.25,18.0]
[1723641331933,45.51098,149.37,149.21,51.8844]
[1723641332117,6.6967,149.33,149.21,6.6244]
[1723641332321,45.26,149.34,149.21,6.6244]
[1723641332625,6.6973,149.32,149.21,6.6244]
[1723641332835,6.6979,149.3,149.21,6.6244]
[1723641333035,6.6988,149.28,149.21,6.6244]
[1723641333243,0.12549,149.3,149.21,6.6244]
[1723641333441,51.9575,149.31,149.21,6.6244]
[1723641333744,6.6975,149.31,149.21,6.6244]
[1723641334428,0.12549,149.33,149.21,6.6244]
[1723641334722,6.82209,149.33,149.21,6.6244]
[1723641334930,6.697,149.32,149.21,6.6244]
[1723641335143,6.6965,149.34,149.22,45.0]
[1723641335307,6.6965,149.34,149.22,65.0]
[1723641335506,6.697,149.32,149.22,65.0]
[1723641335711,0.25098,149.35,149.21,6.6244]
[1723641336013,6.696,149.35,149.21,6.6244]
[1723641336211,0.12549,149.36,149.22,65.37647]
[1723641336412,6.697,149.32,149.22,65.12549]
[1723641336637,6.6971,149.32,149.22,65.12549]
[1723641336936,6.6975,149.31,149.22,45.0]
[1723641337111,6.6975,149.31,149.21,6.6244]
[1723641337615,6.697,149.32,149.21,6.6244]
[1723641337833,0.12549,149.33,149.21,6.6244]
[1723641338012,6.6975,149.31,149.21,6.6244]
[1723641338217,23.55939,149.37,149.21,6.6244]
[1723641338218,23.55939,149.37,149.22,0.12549]
[1723641338438,45.26,149.38,149.23,0.2984236]
[1723641338736,61.9964,149.38,149.24,0.12549]
[1723641338959,6.6966,149.33,149.24,0.12549]
[1723641339239,61.9964,149.38,149.23,0.0474436]
[1723641339444,61.9964,149.38,149.23,0.5494036]
[1723641340118,0.12549,149.37,149.23,20.1729336]
[1723641340319,6.697,149.32,149.23,20.0474436]
[1723641340736,6.697,149.32,149.23,0.0474436]
[1723641341246,6.6987,149.29,149.23,0.0474436]
[1723641341536,6.6969,149.33,149.23,0.0474436]
[1723641342137,6.6962,149.34,149.23,0.0474436]
[1723641342828,6.6962,149.34,149.23,0.4239136]
[1723641343139,6.6956,149.36,149.25,45.26]
[1723641343343,6.6949,149.37,149.26,45.37647]
[1723641344209,6.6962,149.34,149.26,45.37647]
[1723641344423,6.6957,149.35,149.26,45.25098]
[1723641344930,16.7339,149.4,149.26,45.25098]
[1723641345249,6.2389,149.42,149.29,15.7389]
[1723641345250,6.6929,149.42,149.29,15.7389]
[1723641345536,640.6,149.43,149.3,0.25098]
[1723641345537,6.6935,149.4,149.3,0.25098]
[1723641346330,6.696,149.35,149.29,15.7389]
[1723641346532,6.6962,149.34,149.27,6.5351]
[1723641347335,6.6978,149.31,149.27,6.5351]
[1723641347536,61.9986,149.36,149.27,6.5351]
[1723641347537,0.12549,149.35,149.27,6.5351]
[1723641347723,6.6962,149.34,149.27,6.5351]
[1723641348037,6.6953,149.36,149.27,6.5351]
[1723641348233,6.6958,149.35,149.27,6.5351]
[1723641348546,6.6964,149.34,149.27,6.5351]
[1723641348743,61.9952,149.39,149.27,6.5351]
[1723641348744,0.12549,149.36,149.27,6.5351]
[1723641348944,6.6973,149.32,149.27,6.5351]
[1723641349137,45.63647,149.36,149.27,6.5351]
[1723641349436,0.12549,149.31,149.23,0.0474436]
[1723641349742,45.26,149.32,149.23,0.0474436]
[1723641349743,6.697,149.32,149.23,0.0474436]
[1723641350123,0.12549,149.33,149.23,0.0474436]
[1723641350348,61.9999,149.35,149.23,0.0474436]
[1723641350349,6.6982,149.3,149.23,0.0474436]
[1723641350566,0.25098,149.34,149.23,0.0474436]
[1723641350745,6.6974,149.32,149.23,0.0474436]
[1723641350943,0.12549,149.35,149.23,0.0474436]
[1723641351260,6.6966,149.33,149.23,0.1729336]
[1723641351660,6.6962,149.34,149.23,0.1729336]
[1723641351864,0.12549,149.31,149.23,0.0474436]
[1723641352037,0.12549,149.28,149.23,0.0474436]
[1723641352236,6.7002,149.25,149.23,0.0474436]
[1723641352638,6.82609,149.24,149.23,0.0474436]
[1723641353043,6.7002,149.25,149.23,0.0474436]
[1723641353269,6.6997,149.26,149.23,0.0474436]
[1723641353467,0.12549,149.28,149.23,0.0474436]
[1723641353663,45.26,149.32,149.23,0.0474436]
[1723641353867,6.6984,149.29,149.23,0.0474436]
[1723641354368,6.6982,149.3,149.23,0.0474436]
[1723641354575,0.12549,149.32,149.23,0.0474436]
[1723641354742,6.7,149.26,149.23,0.0474436]
[1723641355072,6.6989,149.28,149.23,0.0474436]
[1723641355445,6.6987,149.29,149.23,0.0474436]
[1723641355664,6.6992,149.28,149.23,0.0474436]
[1723641355972,6.6989,149.28,149.23,0.0474436]
[1723641356268,6.6993,149.27,149.23,0.0474436]
[1723641356655,0.12549,149.31,149.23,0.0474436]
[1723641356877,6.6996,149.27,149.23,0.0474436]
[1723641357085,6.6997,149.26,149.23,0.0474436]
[1723641357243,0.37647,149.31,149.23,0.0474436]
[1723641357244,0.25098,149.31,149.23,0.0474436]
[1723641357567,6.6989,149.28,149.23,0.0474436]
[1723641357773,0.12549,149.3,149.23,0.0474436]
[1723641358079,6.6988,149.28,149.23,0.0474436]
[1723641358367,6.6984,149.29,149.23,0.0474436]
[1723641358569,6.6971,149.32,149.23,0.0474436]
[1723641358761,6.697,149.32,149.24,6.4826]
[1723641358962,64.66111337,149.38,149.24,6.4826]
[1723641358963,6.6977,149.31,149.24,6.4826]
[1723641359161,2.66471337,149.38,149.24,6.4826]
[1723641359374,60.5757,149.39,149.25,45.0]
[1723641359853,6.6965,149.33,149.24,6.4826]
[1723641360061,6.696,149.35,149.24,6.4826]
[1723641360258,60.5757,149.39,149.25,45.0]
[1723641360447,45.26,149.36,149.24,6.4826]
[1723641360643,45.26,149.33,149.24,6.4826]
[1723641361045,6.6975,149.31,149.24,6.4826]
[1723641361277,45.26,149.33,149.24,6.4826]
[1723641361649,0.12549,149.35,149.24,6.4826]
[1723641361960,45.26,149.39,149.25,45.26]
[1723641362270,45.26,149.32,149.24,6.4826]
[1723641362482,6.6963,149.34,149.24,6.4826]
[1723641362652,45.26,149.35,149.24,6.4826]
[1723641362969,6.6978,149.31,149.24,6.4826]
[1723641363182,45.26,149.32,149.24,6.4826]
[1723641363478,45.26,149.29,149.23,0.0474436]
[1723641363642,6.7006,149.24,149.23,0.0474436]
[1723641363846,6.7002,149.25,149.23,0.0474436]
[1723641364348,6.7002,149.25,149.19,6.03964475]
[1723641364592,45.38549,149.26,149.19,6.03964475]
[1723641364593,0.12549,149.24,149.19,6.03964475]
[1723641364882,45.26,149.23,149.12,6.85828402]
[1723641365044,6.7024,149.2,149.11,16.107]
[1723641365253,0.12549,149.21,149.11,16.107]
[1723641365659,6.7032,149.19,149.11,16.107]
[1723641366174,6.705,149.15,149.06,15.4553]
[1723641366384,0.12549,149.16,149.05,6.86272098]
[1723641366385,6.7061,149.12,149.05,6.86272098]
[1723641366670,0.12549,149.13,148.99,60.7153]
[1723641366980,6.7073,149.09,148.99,22.31995644]
[1723641367277,6.83279,149.09,148.99,15.4553]
[1723641367485,6.83279,149.09,148.96,13.08607947]
[1723641367802,45.38549,149.13,148.96,51.4809]
[1723641367987,0.12549,149.13,148.99,45.26]
[1723641368278,9.33408373,149.17,148.96,15.74308979]
[1723641368452,45.12549,149.16,149.0,45.26]
[1723641368645,45.26,149.17,149.01,6.2209]
[1723641369051,45.26,149.14,149.01,6.2209]
[1723641369362,6.7074,149.09,148.96,51.8868]
[1723641369573,45.26,149.11,148.96,51.8868]
[1723641369873,45.26,149.14,148.96,58.75288184]
[1723641370185,35.8575,149.2,149.04,45.26]
[1723641370186,61.1175,149.2,149.04,45.26]
[1723641370351,67.8201,149.2,149.04,45.26]
[1723641370551,6.7033,149.18,149.04,45.26]
[1723641370757,45.26,149.17,149.01,45.26]
[1723641370970,45.26,149.17,149.02,0.12549]
[1723641371156,6.7047,149.15,149.02,20.12549]
[1723641371499,61.1175,149.2,149.04,45.26]
[1723641371776,45.26,149.17,149.02,20.0]
[1723641371959,51.9639,149.17,149.02,20.0]
[1723641372153,15.8575,149.2,149.07,45.26]
[1723641372373,45.26,149.24,149.05,6.1811]
[1723641372556,45.26,149.17,149.05,6.1811]
[1723641372773,45.26,149.17,149.06,20.0]
[1723641373103,45.26,149.14,149.05,6.1811]
[1723641373669,0.12549,149.13,149.0,6.3198]
[1723641374471,6.7064,149.11,149.0,6.3198]
[1723641374665,45.26,149.14,149.0,6.3198]
[1723641375109,6.7059,149.13,149.0,6.3198]
[1723641375281,15.5347,149.16,149.01,45.26]
[1723641375600,45.26,149.2,149.04,45.26]
[1723641375771,45.26,149.2,149.05,20.12549]
[1723641375975,45.26,149.2,149.05,20.0]
[1723641376173,45.26,149.2,149.01,45.26]
[1723641376174,45.26,149.17,149.01,45.26]
[1723641376385,51.9651,149.14,149.02,20.12549]
[1723641376595,45.26,149.14,149.03,45.0]
[1723641376797,45.26,149.14,149.02,45.12549]
[1723641377011,45.26,149.17,149.03,20.0]
[1723641377188,51.9628,149.2,149.05,45.26]
[1723641377501,51.9606,149.24,149.09,6.37]
[1723641377712,51.9606,149.24,149.1,45.0]
[1723641377713,45.26,149.24,149.1,45.0]
[1723641378211,45.26,149.18,149.09,6.37]
[1723641378582,45.26,149.18,149.04,21.8139]
[1723641378805,45.26,149.18,149.05,20.0]
[1723641379175,6.7039,149.17,149.05,20.0]
[1723641379375,6.7038,149.17,149.04,21.8139]
[1723641379778,6.7038,149.17,149.05,20.12549]
[1723641379999,6.7038,149.17,149.06,45.0]
[1723641380588,45.26,149.15,149.04,21.8139]
[1723641380778,51.9651,149.15,149.04,21.8139]
[1723641380975,6.7052,149.14,149.04,21.8139]
[1723641381231,6.7074,149.09,148.99,23.38645016]
[1723641381523,45.26,149.15,149.0,6.5557]
[1723641381679,0.12549,149.18,149.02,45.26]
[1723641381680,6.7041,149.17,149.02,45.26]
[1723641382082,32.1168,149.21,149.0,6.5557]
[1723641382083,67.3241,149.21,149.05,45.26]
[1723641382282,60.6218,149.21,149.05,45.26]
[1723641382692,6.7046,149.15,149.02,45.26]
[1723641382881,6.7042,149.16,149.03,45.12549]
[1723641383214,60.6218,149.21,149.05,45.26]
[1723641383417,6.3071,149.25,149.08,45.26]
[1723641383583,6.7024,149.2,149.09,20.12549]
[1723641383908,16.7537,149.23,149.07,6.1176]
[1723641384115,45.26,149.2,149.07,6.1176]
[1723641384279,685.86,149.24,149.08,20.0]
[1723641384599,685.86,149.24,149.09,16.4283]
[1723641384786,685.86,149.24,149.1,20.0]
[1723641384983,16.4774,149.26,149.11,45.26]
[1723641385186,6.7002,149.25,149.12,45.0]
[1723641385614,6.7007,149.24,149.12,45.0]
[1723641385808,16.4774,149.26,149.12,45.0]
[1723641386009,45.26,149.28,149.13,6.2982]
[1723641386312,6.6996,149.27,149.14,110.26]
[1723641386682,6.6996,149.27,149.15,0.12549]
[1723641387610,45.26,149.31,149.15,0.12549]
[1723641388021,45.26,149.31,149.14,110.26]
[1723641388197,6.7002,149.25,149.14,110.26]
[1723641388522,6.6996,149.27,149.14,65.26]